[Event "EWCCC Online Preliminary-D 2020"]
[Site "Online"]
[Date "2020.12.19"]
[Round "5.1"]
[White "Hrescak, Ivana"]
[Black "Balajayeva, Khanim"]
[Result "1/2-1/2"]
[ECO "D37"]
[WhiteElo "2212"]
[BlackElo "2376"]
[Annotator "RC"]
[PlyCount "96"]
[EventDate "2020.12.19"]
[EventType "team-tourn"]
[EventCountry "NET"]
[SourceTitle "playchess.com"]
[Source "ChessBase"]
[SourceQuality "1"]
[TimeControl "900+5"]

1. d4 {[%emt 0:00:00]} d5 {[%emt 0:00:03]} 2. c4 {[%emt 0:00:02]} dxc4 {[%emt 0:00:01]} 3. Nf3 {[%emt 0:00:05]} Nf6 {[%emt 0:00:03]} 4. e3 {[%emt 0:00:02]} e6 {[%emt 0:00:01]} 5. Bxc4 {[%emt 0:00:01]} a6 {[%emt 0:00:02]} 6. O-O {[%emt 0:00:03]} b5 {[%emt 0:00:02]} 7. Bd3 {[%emt 0:00:02]} Bb7 {[%emt 0:00:03]} 8. Nc3 {[%emt 0:00:03]} c5 {[%emt 0:00:09]} 9. dxc5 {[%emt 0:00:22]} Bxc5 {[%emt 0:00:53]} 10. Qe2 {[%emt 0:00:14]} Nbd7 {[%emt 0:00:19]} 11. Rd1 {[%emt 0:00:06]} O-O {[%emt 0:01:19]} 12. a3 {[%emt 0:00:04]} Qc7 {[%emt 0:00:16]} 13. e4 {[%emt 0:01:06]} Ng4 {[%emt 0:00:49]} 14. Rf1 {[%emt 0:00:08]} Rad8 {[%emt 0:01:17]} 15. h3 {[%emt 0:00:16]} Nge5 {[%emt 0:00:30]} 16. Nxe5 {[%emt 0:00:04]} Nxe5 {[%emt 0:00:16]} 17. Bc2 {[%emt 0:00:02]} Ng6 {[%emt 0:00:31]} 18. Be3 {[%emt 0:00:36]} Bd6 {[%emt 0:01:09]} 19. Rad1 {[%emt 0:01:35]} Be5 {[%emt 0:00:22]} 20. Bd2 {[%emt 0:02:51]} h6 {[%emt 0:00:48]} 21. Bb1 {[%emt 0:01:12]} Rd7 {[%emt 0:00:18]} 22. Na2 {[%emt 0:02:06]} Rfd8 {[%emt 0:01:44]} 23. Bc3 {[%emt 0:00:04]} Bxc3 {[%emt 0:02:51]} 24. Nxc3 {[%emt 0:00:04]} Nf4 {[%emt 0:00:16]} 25. Qf3 {[%emt 0:00:11]} e5 {[%emt 0:00:41]} 26. Rxd7 {[%emt 0:00:14]} Rxd7 {[%emt 0:00:03]} 27. Rd1 {[%emt 0:00:06]} Rd4 {[%emt 0:00:49]} 28. Ba2 {[%emt 0:01:30]} Qd6 {[%emt 0:00:52]} 29. Nd5 {[%emt 0:01:46]} Bxd5 {[%emt 0:00:05]} 30. Bxd5 {[%emt 0:00:10]} Rxd1+ {[%emt 0:00:34]} 31. Qxd1 {[%emt 0:00:06]} Qc7 {[%emt 0:00:03]} 32. Kh2 {[%emt 0:00:15]} Kh7 {[%emt 0:00:06]} 33. Qf3 {[%emt 0:00:17]} f6 {[%emt 0:00:13]} 34. g3 {[%emt 0:00:42]} Nxd5 {[%emt 0:00:06]} 35. exd5 {[%emt 0:00:01]} Kg8 {[%emt 0:00:01]} 36. Kg2 {[%emt 0:00:43]} Kf8 {[%emt 0:00:03]} 37. Qe4 {[%emt 0:00:11]} Qc5 {[%emt 0:00:07]} 38. g4 {[%emt 0:00:37]} Ke7 {[%emt 0:00:03]} 39. f3 {[%emt 0:00:07]} Kd6 {[%emt 0:00:04]} 40. Qg6 {[%emt 0:00:03]} Qc7 {[%emt 0:00:09]} 41. Qe4 {[%emt 0:00:03]} Qc1 {[%emt 0:00:04]} 42. Qg6 {[%emt 0:00:04]} Qg5 {[%emt 0:00:09]} 43. Qf7 {[%emt 0:00:02]} Qd2+ {[%emt 0:00:03]} 44. Kg3 {[%emt 0:00:01]} Qe1+ {[%emt 0:00:05]} 45. Kg2 {[%emt 0:00:02]} Qe2+ {[%emt 0:00:08]} 46. Kg3 {[%emt 0:00:01]} Qe1+ {[%emt 0:00:04]} 47. Kg2 {[%emt 0:00:02]} Qd2+ {[%emt 0:00:04]} 48. Kg3 {[%emt 0:00:05]} Qe1+ {[%emt 0:00:05]} 1/2-1/2

[Event "EWCCC Online Preliminary-D 2020"]
[Site "Online"]
[Date "2020.12.19"]
[Round "5.2"]
[White "Sarakauskiene, Zivile"]
[Black "Salimova, Nurgyul"]
[Result "0-1"]
[ECO "B15"]
[WhiteElo "2101"]
[BlackElo "2397"]
[Annotator "RC"]
[PlyCount "116"]
[EventDate "2020.12.19"]
[EventType "team-tourn"]
[EventCountry "NET"]
[SourceTitle "playchess.com"]
[Source "ChessBase"]
[SourceQuality "1"]
[TimeControl "900+5"]

1. e4 {[%emt 0:00:04]} c6 {[%emt 0:00:02]} 2. d4 {[%emt 0:00:02]} d5 {[%emt 0:00:02]} 3. Nc3 {[%emt 0:00:03]} dxe4 {[%emt 0:00:01]} 4. Nxe4 {[%emt 0:00:03]} Nf6 {[%emt 0:00:02]} 5. Nxf6+ {[%emt 0:00:02]} exf6 {[%emt 0:00:01]} 6. c3 {[%emt 0:00:02]} Bd6 {[%emt 0:00:02]} 7. Bd3 {[%emt 0:00:05]} O-O {[%emt 0:00:02]} 8. Qc2 {[%emt 0:00:09]} Re8+ {[%emt 0:00:02]} 9. Ne2 {[%emt 0:00:03]} h5 {[%emt 0:00:02]} 10. h3 {[%emt 0:00:32]} Nd7 {[%emt 0:01:11]} 11. Be3 {[%emt 0:00:19]} Nf8 {[%emt 0:00:09]} 12. O-O-O {[%emt 0:00:17]} Be6 {[%emt 0:00:16]} 13. Kb1 {[%emt 0:00:19]} h4 {[%emt 0:03:53]} 14. Bf4 {[%emt 0:02:42]} Bd5 {[%emt 0:00:31]} 15. Bxd6 {[%emt 0:01:13]} Qxd6 {[%emt 0:00:03]} 16. Rhg1 {[%emt 0:01:20]} b5 {[%emt 0:01:25]} 17. g3 {[%emt 0:03:04]} Ng6 {[%emt 0:02:23]} 18. b3 {[%emt 0:00:23]} Bf3 {[%emt 0:00:23]} 19. Rde1 {[%emt 0:00:09]} b4 {[%emt 0:00:12]} 20. Kb2 {[%emt 0:00:51]} bxc3+ {[%emt 0:01:02]} 21. Qxc3 {[%emt 0:00:13]} Bxe2 {[%emt 0:00:47]} 22. Rxe2 {[%emt 0:00:13]} Rxe2+ {[%emt 0:00:05]} 23. Bxe2 {[%emt 0:00:01]} Rd8 {[%emt 0:00:05]} 24. Rd1 {[%emt 0:00:16]} hxg3 {[%emt 0:00:03]} 25. fxg3 {[%emt 0:00:02]} Ne7 {[%emt 0:00:07]} 26. Qc5 {[%emt 0:01:03]} Qc7 {[%emt 0:00:44]} 27. Bg4 {[%emt 0:01:17]} Nd5 {[%emt 0:00:21]} 28. Rd3 {[%emt 0:00:09]} a5 {[%emt 0:00:13]} 29. a3 {[%emt 0:00:30]} g6 {[%emt 0:00:56]} 30. b4 {[%emt 0:00:18]} axb4 {[%emt 0:00:24]} 31. axb4 {[%emt 0:00:02]} Rb8 {[%emt 0:00:01]} 32. Rb3 {[%emt 0:00:02]} Rb5 {[%emt 0:00:09]} 33. Qc4 {[%emt 0:00:08]} Qb7 {[%emt 0:01:12]} 34. Bf3 {[%emt 0:00:24]} Kg7 {[%emt 0:00:35]} 35. Ka3 {[%emt 0:01:03]} Qa7+ {[%emt 0:00:09]} 36. Kb2 {[%emt 0:00:01]} Qd7 {[%emt 0:00:01]} 37. Bg4 {[%emt 0:00:11]} f5 {[%emt 0:00:11]} 38. Bf3 {[%emt 0:00:02]} Nb6 {[%emt 0:00:08]} 39. Qd3 {[%emt 0:00:12]} Qd6 {[%emt 0:00:05]} 40. g4 {[%emt 0:00:05]} fxg4 {[%emt 0:00:04]} 41. hxg4 {[%emt 0:00:02]} Rxb4 {[%emt 0:00:03]} 42. Rxb4 {[%emt 0:00:22]} Qxb4+ {[%emt 0:00:01]} 43. Kc2 {[%emt 0:00:02]} Qa4+ {[%emt 0:00:13]} 44. Kd2 {[%emt 0:00:06]} Nc4+ {[%emt 0:00:05]} 45. Ke2 {[%emt 0:00:02]} Qa2+ {[%emt 0:00:05]} 46. Ke1 {[%emt 0:00:07]} Qa1+ {[%emt 0:00:05]} 47. Kf2 {[%emt 0:00:05]} Na5 {[%emt 0:00:10]} 48. Kg3 {[%emt 0:00:10]} Qg1+ {[%emt 0:00:03]} 49. Bg2 {[%emt 0:00:04]} Qe1+ {[%emt 0:00:02]} 50. Kh3 {[%emt 0:00:03]} Qc1 {[%emt 0:00:09]} 51. Kg3 {[%emt 0:00:08]} Nb7 {[%emt 0:00:07]} 52. d5 {[%emt 0:00:04]} cxd5 {[%emt 0:00:03]} 53. Bxd5 {[%emt 0:00:03]} Qc7+ {[%emt 0:00:04]} 54. Kg2 {[%emt 0:00:04]} Nc5 {[%emt 0:00:04]} 55. Qd4+ {[%emt 0:00:03]} Kg8 {[%emt 0:00:02]} 56. Qf6 {[%emt 0:00:05]} Kf8 {[%emt 0:00:07]} 57. Qh8+ {[%emt 0:00:14]} Ke7 {[%emt 0:00:01]} 58. Qg7 {[%emt 0:00:05]} Qf4 {[%emt 0:00:07]} 0-1

[Event "EWCCC Online Preliminary-D 2020"]
[Site "Online"]
[Date "2020.12.19"]
[Round "5.3"]
[White "Narva, Mai"]
[Black "Jose Polanco, Kenia"]
[Result "1-0"]
[ECO "B39"]
[WhiteElo "2276"]
[BlackElo "1828"]
[Annotator "RC"]
[PlyCount "67"]
[EventDate "2020.12.19"]
[EventType "team-tourn"]
[EventCountry "NET"]
[SourceTitle "playchess.com"]
[Source "ChessBase"]
[SourceQuality "1"]
[TimeControl "900+5"]

1. e4 {[%emt 0:00:03]} c5 {[%emt 0:02:01]} 2. Nf3 {[%emt 0:00:03]} g6 {[%emt 0:00:05]} 3. c4 {[%emt 0:00:08]} Bg7 {[%emt 0:00:06]} 4. d4 {[%emt 0:00:04]} cxd4 {[%emt 0:00:04]} 5. Nxd4 {[%emt 0:00:02]} Nc6 {[%emt 0:00:05]} 6. Be3 {[%emt 0:00:18]} Nf6 {[%emt 0:00:22]} 7. Nc3 {[%emt 0:00:29]} Ng4 {[%emt 0:00:45]} 8. Qxg4 {[%emt 0:00:02]} Nxd4 {[%emt 0:00:39]} 9. Qd1 {[%emt 0:00:06]} e5 {[%emt 0:00:45]} 10. Be2 {[%emt 0:00:47]} O-O {[%emt 0:00:11]} 11. O-O {[%emt 0:00:03]} d6 {[%emt 0:00:02]} 12. Qd2 {[%emt 0:00:28]} f5 {[%emt 0:00:30]} 13. exf5 {[%emt 0:00:50]} Bxf5 {[%emt 0:01:03]} 14. Bxd4 {[%emt 0:00:26]} exd4 {[%emt 0:00:05]} 15. Nb5 {[%emt 0:00:07]} Qb6 {[%emt 0:00:50]} 16. Rad1 {[%emt 0:00:21]} Rae8 {[%emt 0:00:52]} 17. Bf3 {[%emt 0:05:23]} Be4 {[%emt 0:00:36]} 18. Bg4 {[%emt 0:00:07]} Qc6 {[%emt 0:03:25]} 19. f3 {[%emt 0:01:09]} Bf5 {[%emt 0:00:50]} 20. Bxf5 {[%emt 0:00:27]} Rxf5 {[%emt 0:00:12]} 21. Nxd4 {[%emt 0:00:16]} Qb6 {[%emt 0:00:40]} 22. Rf2 {[%emt 0:01:48]} Rh5 {[%emt 0:01:02]} 23. Nb5 {[%emt 0:00:27]} d5 {[%emt 0:00:29]} 24. Qd3 {[%emt 0:01:18]} dxc4 {[%emt 0:00:21]} 25. Qxc4+ {[%emt 0:00:04]} Kh8 {[%emt 0:00:02]} 26. Nd6 {[%emt 0:00:12]} Rf8 {[%emt 0:00:32]} 27. Nf7+ {[%emt 0:00:12]} Rxf7 {[%emt 0:00:28]} 28. Qxf7 {[%emt 0:00:01]} Rf5 {[%emt 0:00:05]} 29. Qd7 {[%emt 0:00:16]} Rf8 {[%emt 0:00:06]} 30. Qd6 {[%emt 0:00:14]} Qb5 {[%emt 0:00:07]} 31. Rc2 {[%emt 0:00:09]} Qa4 {[%emt 0:00:03]} 32. b3 {[%emt 0:00:06]} Qa5 {[%emt 0:00:07]} 33. Rc7 {[%emt 0:00:11]} Be5 {[%emt 0:00:04]} 34. Qxf8# {[%emt 0:00:02]} 1-0

[Event "EWCCC Online Preliminary-D 2020"]
[Site "Online"]
[Date "2020.12.19"]
[Round "5.3"]
[White "Berezovska, Svetlana"]
[Black "Olde, Margareth"]
[Result "0-1"]
[ECO "B07"]
[WhiteElo "1793"]
[BlackElo "2233"]
[Annotator "RC"]
[PlyCount "114"]
[EventDate "2020.12.19"]
[EventType "team-tourn"]
[EventCountry "NET"]
[SourceTitle "playchess.com"]
[Source "ChessBase"]
[SourceQuality "1"]
[TimeControl "900+5"]

1. e4 {[%emt 0:00:00]} d6 {[%emt 0:00:04]} 2. d4 {[%emt 0:00:05]} Nf6 {[%emt 0:00:03]} 3. Nc3 {[%emt 0:00:05]} e5 {[%emt 0:00:01]} 4. dxe5 {[%emt 0:00:26]} dxe5 {[%emt 0:00:04]} 5. Qxd8+ {[%emt 0:00:04]} Kxd8 {[%emt 0:00:02]} 6. Bc4 {[%emt 0:00:17]} Ke8 {[%emt 0:00:02]} 7. Nf3 {[%emt 0:00:05]} Bd6 {[%emt 0:00:05]} 8. O-O {[%emt 0:00:21]} Be6 {[%emt 0:01:30]} 9. Bxe6 {[%emt 0:02:43]} fxe6 {[%emt 0:00:05]} 10. h3 {[%emt 0:01:40]} a6 {[%emt 0:00:11]} 11. Be3 {[%emt 0:00:28]} Nc6 {[%emt 0:00:16]} 12. a3 {[%emt 0:00:08]} h6 {[%emt 0:01:10]} 13. Rad1 {[%emt 0:00:12]} g5 {[%emt 0:00:34]} 14. Rd3 {[%emt 0:01:37]} Ke7 {[%emt 0:00:41]} 15. Rfd1 {[%emt 0:00:17]} b5 {[%emt 0:02:36]} 16. Bc1 {[%emt 0:03:37]} Rab8 {[%emt 0:03:24]} 17. Re3 {[%emt 0:01:48]} Nd4 {[%emt 0:03:03]} 18. Ne1 {[%emt 0:00:45]} g4 {[%emt 0:00:52]} 19. h4 {[%emt 0:00:25]} a5 {[%emt 0:01:27]} 20. Ne2 {[%emt 0:01:05]} Bc5 {[%emt 0:00:17]} 21. Nxd4 {[%emt 0:00:07]} Bxd4 {[%emt 0:00:05]} 22. Re2 {[%emt 0:00:05]} g3 {[%emt 0:00:01]} 23. Nd3 {[%emt 0:00:09]} gxf2+ {[%emt 0:00:03]} 24. Nxf2 {[%emt 0:00:04]} Rbf8 {[%emt 0:00:07]} 25. Rf1 {[%emt 0:00:15]} Ng4 {[%emt 0:00:05]} 26. c3 {[%emt 0:00:05]} Bxf2+ {[%emt 0:00:03]} 27. Rexf2 {[%emt 0:00:02]} Nxf2 {[%emt 0:00:02]} 28. Rxf2 {[%emt 0:00:05]} Rxf2 {[%emt 0:00:01]} 29. Kxf2 {[%emt 0:00:02]} h5 {[%emt 0:00:03]} 30. Bg5+ {[%emt 0:00:05]} Kf7 {[%emt 0:00:07]} 31. Ke3 {[%emt 0:00:05]} Kg6 {[%emt 0:00:04]} 32. Kd3 {[%emt 0:00:10]} Rh7 {[%emt 0:00:06]} 33. Ke3 {[%emt 0:00:12]} Rf7 {[%emt 0:00:07]} 34. Ke2 {[%emt 0:00:05]} c5 {[%emt 0:00:05]} 35. Ke3 {[%emt 0:00:04]} Rf1 {[%emt 0:00:05]} 36. b4 {[%emt 0:00:11]} axb4 {[%emt 0:00:04]} 37. axb4 {[%emt 0:00:02]} cxb4 {[%emt 0:00:05]} 38. cxb4 {[%emt 0:00:02]} Rb1 {[%emt 0:00:04]} 39. Be7 {[%emt 0:00:03]} Rb3+ {[%emt 0:00:05]} 40. Ke2 {[%emt 0:00:03]} Kf7 {[%emt 0:00:04]} 41. Bd6 {[%emt 0:00:04]} Ke8 {[%emt 0:00:13]} 42. Bc5 {[%emt 0:00:05]} Kd7 {[%emt 0:00:03]} 43. Bf8 {[%emt 0:00:03]} Rc3 {[%emt 0:00:17]} 44. Bc5 {[%emt 0:00:07]} Rb3 {[%emt 0:00:03]} 45. Bf8 {[%emt 0:00:03]} Rg3 {[%emt 0:00:02]} 46. Kf2 {[%emt 0:00:03]} Rg4 {[%emt 0:00:02]} 47. Kf3 {[%emt 0:00:05]} Rxh4 {[%emt 0:00:03]} 48. Bg7 {[%emt 0:00:02]} Rf4+ {[%emt 0:00:04]} 49. Ke3 {[%emt 0:00:02]} Rg4 {[%emt 0:00:07]} 50. Bxe5 {[%emt 0:00:05]} Rxg2 {[%emt 0:00:01]} 51. Kf3 {[%emt 0:00:02]} Rg1 {[%emt 0:00:04]} 52. Kf2 {[%emt 0:00:07]} Rb1 {[%emt 0:00:05]} 53. Bc3 {[%emt 0:00:05]} Rb3 {[%emt 0:00:04]} 54. Be1 {[%emt 0:00:05]} Kd6 {[%emt 0:00:07]} 55. Ke2 {[%emt 0:00:09]} Ke5 {[%emt 0:00:05]} 56. Kd2 {[%emt 0:00:02]} Kxe4 {[%emt 0:00:03]} 57. Kc2 {[%emt 0:00:02]} Rf3 {[%emt 0:00:04]} 0-1

[Event "EWCCC Online Preliminary-D 2020"]
[Site "Online"]
[Date "2020.12.19"]
[Round "6.1"]
[White "Pipia, Ekaterine"]
[Black "Berezovska, Svetlana"]
[Result "1-0"]
[ECO "D38"]
[WhiteElo "2019"]
[BlackElo "1793"]
[Annotator "NA"]
[PlyCount "51"]
[EventDate "2020.12.19"]
[EventType "team-tourn"]
[EventCountry "NET"]
[SourceTitle "playchess.com"]
[Source "ChessBase"]
[SourceQuality "1"]
[TimeControl "900+5"]

1. d4 {[%emt 0:00:00]} Nf6 {[%emt 0:00:35]} 2. c4 {[%emt 0:00:02]} e6 {[%emt 0:00:03]} 3. Nf3 {[%emt 0:00:02]} d5 {[%emt 0:00:29]} 4. Nc3 {[%emt 0:00:02]} Bb4 {[%emt 0:00:25]} 5. Bg5 {[%emt 0:00:06]} O-O {[%emt 0:00:08]} 6. e3 {[%emt 0:00:04]} h6 {[%emt 0:00:07]} 7. Bh4 {[%emt 0:00:05]} b6 {[%emt 0:00:26]} 8. cxd5 {[%emt 0:00:39]} exd5 {[%emt 0:00:08]} 9. Bd3 {[%emt 0:00:02]} Re8 {[%emt 0:00:10]} 10. O-O {[%emt 0:00:05]} Bg4 {[%emt 0:00:19]} 11. h3 {[%emt 0:00:09]} Be6 {[%emt 0:00:44]} 12. Rc1 {[%emt 0:00:11]} c5 {[%emt 0:00:44]} 13. Bb1 {[%emt 0:00:15]} c4 {[%emt 0:00:38]} 14. Qc2 {[%emt 0:00:13]} g6 {[%emt 0:00:37]} 15. e4 {[%emt 0:01:07]} Bxc3 {[%emt 0:03:49]} 16. e5 {[%emt 0:00:34]} Bb4 {[%emt 0:01:12]} 17. exf6 {[%emt 0:00:03]} Bf5 {[%emt 0:01:56]} 18. Qa4 {[%emt 0:00:48]} Bxb1 {[%emt 0:00:10]} 19. Qxb4 {[%emt 0:00:22]} Be4 {[%emt 0:00:11]} 20. Qd2 {[%emt 0:00:07]} Kh7 {[%emt 0:00:21]} 21. Ne5 {[%emt 0:00:23]} g5 {[%emt 0:01:20]} 22. Bxg5 {[%emt 0:00:36]} hxg5 {[%emt 0:00:04]} 23. Qxg5 {[%emt 0:00:01]} Bg6 {[%emt 0:00:47]} 24. Nxf7 {[%emt 0:00:10]} Qd7 {[%emt 0:00:59]} 25. Qh6+ {[%emt 0:00:05]} Kg8 {[%emt 0:00:06]} 26. Qg7# {[%emt 0:00:01]} 1-0

[Event "EWCCC Online Preliminary-D 2020"]
[Site "Online"]
[Date "2020.12.19"]
[Round "6.1"]
[White "Lomaia, Diana"]
[Black "Berezovsky, Fiorina"]
[Result "1-0"]
[ECO "E11"]
[WhiteElo "1946"]
[BlackElo "1665"]
[Annotator "NA"]
[PlyCount "71"]
[EventDate "2020.12.19"]
[EventType "team-tourn"]
[EventCountry "NET"]
[SourceTitle "playchess.com"]
[Source "ChessBase"]
[SourceQuality "1"]
[TimeControl "900+5"]

1. d4 {[%emt 0:00:02]} Nf6 {[%emt 0:00:23]} 2. c4 {[%emt 0:00:03]} e6 {[%emt 0:00:05]} 3. g3 {[%emt 0:00:02]} Bb4+ {[%emt 0:00:06]} 4. Bd2 {[%emt 0:00:04]} Bxd2+ {[%emt 0:00:21]} 5. Nxd2 {[%emt 0:00:02]} d5 {[%emt 0:00:07]} 6. Bg2 {[%emt 0:00:06]} O-O {[%emt 0:00:08]} 7. Ngf3 {[%emt 0:00:03]} Nc6 {[%emt 0:00:18]} 8. O-O {[%emt 0:00:23]} dxc4 {[%emt 0:00:22]} 9. Nxc4 {[%emt 0:00:03]} Re8 {[%emt 0:00:05]} 10. e3 {[%emt 0:00:24]} a6 {[%emt 0:00:32]} 11. Rc1 {[%emt 0:00:25]} Nb4 {[%emt 0:00:20]} 12. a3 {[%emt 0:00:13]} Nbd5 {[%emt 0:00:07]} 13. Nce5 {[%emt 0:01:10]} Nd7 {[%emt 0:01:01]} 14. Qc2 {[%emt 0:01:26]} Nxe5 {[%emt 0:00:15]} 15. Nxe5 {[%emt 0:00:04]} f6 {[%emt 0:00:07]} 16. Nc4 {[%emt 0:00:47]} b5 {[%emt 0:01:33]} 17. Na5 {[%emt 0:01:11]} Qd7 {[%emt 0:03:23]} 18. e4 {[%emt 0:00:48]} Ne7 {[%emt 0:00:34]} 19. Rfd1 {[%emt 0:00:50]} Ra7 {[%emt 0:00:53]} 20. b4 {[%emt 0:01:59]} f5 {[%emt 0:00:29]} 21. exf5 {[%emt 0:00:49]} Nxf5 {[%emt 0:00:12]} 22. Bc6 {[%emt 0:00:35]} Qe7 {[%emt 0:00:46]} 23. Bxe8 {[%emt 0:00:03]} Qxe8 {[%emt 0:00:02]} 24. Qc5 {[%emt 0:00:37]} Ra8 {[%emt 0:00:53]} 25. Qxc7 {[%emt 0:00:56]} Qh5 {[%emt 0:00:20]} 26. Qd8+ {[%emt 0:00:19]} Kf7 {[%emt 0:00:10]} 27. Rc7+ {[%emt 0:00:05]} Kg6 {[%emt 0:00:19]} 28. Qe8+ {[%emt 0:00:09]} Kg5 {[%emt 0:00:31]} 29. Qxh5+ {[%emt 0:00:28]} Kxh5 {[%emt 0:00:02]} 30. Rdc1 {[%emt 0:00:11]} Nd6 {[%emt 0:00:29]} 31. R1c6 {[%emt 0:00:19]} Bb7 {[%emt 0:01:03]} 32. Nxb7 {[%emt 0:00:07]} Nxb7 {[%emt 0:00:13]} 33. Rxb7 {[%emt 0:00:03]} Rd8 {[%emt 0:00:09]} 34. Rxe6 {[%emt 0:00:20]} Rxd4 {[%emt 0:00:07]} 35. Rxg7 {[%emt 0:00:10]} h6 {[%emt 0:00:09]} 36. Re5# {[%emt 0:00:05]} 1-0

[Event "EWCCC Online Preliminary-D 2020"]
[Site "Online"]
[Date "2020.12.19"]
[Round "6.1"]
[White "Jose Polanco, Kenia"]
[Black "Esadze, Tamari"]
[Result "0-1"]
[ECO "D00"]
[WhiteElo "1828"]
[BlackElo "1889"]
[Annotator "NA"]
[PlyCount "96"]
[EventDate "2020.12.19"]
[EventType "team-tourn"]
[EventCountry "NET"]
[SourceTitle "playchess.com"]
[Source "ChessBase"]
[SourceQuality "1"]
[TimeControl "900+5"]

1. d4 {[%emt 0:00:00]} d5 {[%emt 0:00:04]} 2. Bf4 {[%emt 0:00:04]} Nf6 {[%emt 0:00:08]} 3. e3 {[%emt 0:00:09]} Bf5 {[%emt 0:00:07]} 4. c4 {[%emt 0:00:08]} e6 {[%emt 0:00:05]} 5. Nc3 {[%emt 0:00:04]} Bd6 {[%emt 0:00:44]} 6. Bg5 {[%emt 0:00:04]} dxc4 {[%emt 0:00:17]} 7. Bxc4 {[%emt 0:00:06]} Bg6 {[%emt 0:00:52]} 8. Qb3 {[%emt 0:00:24]} Nbd7 {[%emt 0:01:12]} 9. Nf3 {[%emt 0:00:16]} O-O {[%emt 0:00:21]} 10. e4 {[%emt 0:00:37]} Be7 {[%emt 0:00:32]} 11. e5 {[%emt 0:01:13]} Ne4 {[%emt 0:00:32]} 12. Be3 {[%emt 0:00:44]} Nb6 {[%emt 0:00:35]} 13. Be2 {[%emt 0:00:33]} a5 {[%emt 0:01:06]} 14. a4 {[%emt 0:00:29]} Rc8 {[%emt 0:00:56]} 15. O-O {[%emt 0:01:02]} Nxc3 {[%emt 0:00:15]} 16. bxc3 {[%emt 0:00:11]} c5 {[%emt 0:00:24]} 17. Rfd1 {[%emt 0:01:19]} c4 {[%emt 0:00:33]} 18. Qa2 {[%emt 0:00:25]} Nd5 {[%emt 0:00:14]} 19. Rdc1 {[%emt 0:00:53]} Qc7 {[%emt 0:01:13]} 20. Nd2 {[%emt 0:00:35]} Bd3 {[%emt 0:00:07]} 21. Bf3 {[%emt 0:00:24]} h6 {[%emt 0:00:43]} 22. Ne4 {[%emt 0:00:22]} b6 {[%emt 0:00:19]} 23. Ng3 {[%emt 0:00:39]} Nxe3 {[%emt 0:00:28]} 24. fxe3 {[%emt 0:00:05]} Bg5 {[%emt 0:00:05]} 25. Re1 {[%emt 0:00:21]} f6 {[%emt 0:00:22]} 26. exf6 {[%emt 0:00:31]} Bxf6 {[%emt 0:00:10]} 27. Nh5 {[%emt 0:00:42]} Bg5 {[%emt 0:00:11]} 28. Ng3 {[%emt 0:00:12]} Bh4 {[%emt 0:00:15]} 29. Qf2 {[%emt 0:01:21]} e5 {[%emt 0:00:16]} 30. e4 {[%emt 0:00:31]} exd4 {[%emt 0:00:20]} 31. Qxd4 {[%emt 0:00:07]} Bxg3 {[%emt 0:00:18]} 32. hxg3 {[%emt 0:00:04]} Qxg3 {[%emt 0:00:04]} 33. Qd5+ {[%emt 0:00:27]} Kh8 {[%emt 0:00:05]} 34. e5 {[%emt 0:00:06]} Rcd8 {[%emt 0:00:15]} 35. Qc6 {[%emt 0:00:11]} Rc8 {[%emt 0:00:15]} 36. Qd5 {[%emt 0:00:08]} Rc5 {[%emt 0:00:25]} 37. Qb7 {[%emt 0:00:41]} Rxe5 {[%emt 0:00:03]} 38. Rxe5 {[%emt 0:00:05]} Qxe5 {[%emt 0:00:03]} 39. Qxb6 {[%emt 0:00:47]} Qxc3 {[%emt 0:00:05]} 40. Rd1 {[%emt 0:00:18]} Qc2 {[%emt 0:00:21]} 41. Qc6 {[%emt 0:00:24]} c3 {[%emt 0:00:25]} 42. Qd5 {[%emt 0:00:08]} Be2 {[%emt 0:00:15]} 43. Bxe2 {[%emt 0:00:04]} Qxe2 {[%emt 0:00:02]} 44. Qd6 {[%emt 0:00:09]} Qf2+ {[%emt 0:00:05]} 45. Kh1 {[%emt 0:00:07]} c2 {[%emt 0:00:06]} 46. Rc1 {[%emt 0:00:26]} Re8 {[%emt 0:00:17]} 47. Qg6 {[%emt 0:00:09]} Re1+ {[%emt 0:00:09]} 48. Kh2 {[%emt 0:00:09]} Qh4# {[%emt 0:00:02]} 0-1